bitfinex-derivatives/quotes_SOLF0:USTF0_20240927
["timestamp","ask_amount","ask_price","bid_price","bid_amount"]
[1727444779384,106.51846869,156.35,156.22,27.12]
[1727444779986,3.1979,156.32,156.27,3.1986]
[1727444781393,1.5871,156.38,156.27,27.12]
[1727444781690,0.9612,156.41,156.32,27.12]
[1727444781889,76.08,156.43,156.35,27.12]
[1727444782186,79.2757,156.43,156.38,3.1963]
[1727444782889,76.08,156.43,156.35,27.12]
[1727444783090,76.08,156.43,156.33,3.1514]
[1727444783980,3.1961,156.4,156.33,3.1514]
[1727444784184,103.2,156.43,156.33,1.5621]
[1727444784383,103.2,156.43,156.26,1.5621]
[1727444784384,3.1964,156.39,156.3,27.12]
[1727444784791,103.2,156.43,156.3,27.12]
[1727444784992,122.45,156.43,156.3,27.12]
[1727444785188,27.12,156.41,156.3,27.12]
[1727444785390,27.12,156.41,156.27,30.3575]
[1727444785590,0.9563,156.4,156.3,3.198]
[1727444785789,0.9563,156.4,156.27,3.2375]
[1727444785988,0.9612,156.39,156.27,3.2375]
[1727444786295,27.12,156.38,156.3,3.1981]
[1727444786589,27.12,156.38,156.28,3.1985]
[1727444786791,1.5425,156.37,156.27,3.2375]
[1727444787188,3.1977,156.32,156.28,3.1985]
[1727444787394,3.1977,156.32,156.26,1.5621]
[1727444787896,3.2076774,156.34,156.22,27.12]
[1727444788088,27.12,156.36,156.22,27.12]
[1727444788582,30.29664672,156.36,156.22,27.12]
[1727444788783,3.1979,156.31,156.26,3.1989]
[1727444788991,49.54664672,156.36,156.22,27.12]
[1727444789889,3.1977,156.32,156.27,3.1987]
[1727444790089,27.12,156.33,156.2,27.12]
[1727444790489,3.1982,156.3,156.25,3.199]
[1727444790889,46.37,156.33,156.25,3.199]
[1727444791094,27.12,156.31,156.23,3.1995]
[1727444791392,27.12,156.31,156.19,1.6472]
[1727444791597,46.37,156.31,156.22,3.1996]
[1727444791791,27.12,156.28,156.19,1.6472]
[1727444791990,27.12,156.28,156.18,1.6951]
[1727444791991,27.12,156.26,156.18,1.6951]
[1727444792297,1.6656,156.27,156.18,1.6951]
[1727444792598,3.1993,156.25,156.2,3.2001]
[1727444794188,3.1993,156.25,156.21,3.1999]
[1727444795198,3.1993,156.25,156.2,3.2001]
[1727444796497,3.1993,156.25,156.18,1.6951]
[1727444797095,1.6656,156.27,156.18,1.6951]
[1727444797288,29.0623,156.3,156.19,27.12]
[1727444797594,103.16,156.32,156.25,3.199]
[1727444797799,103.16,156.32,156.2,1.6414]
[1727444798595,3.1984,156.29,156.2,1.6414]
[1727444798898,103.16,156.32,156.2,1.6414]
[1727444799096,3.1983,156.3,156.25,3.199]
[1727444799903,3.1984,156.29,156.25,3.199]
[1727444800399,46.32,156.28,156.18,1.6951]
[1727444800699,27.12,156.25,156.18,1.6951]
[1727444801602,1.7056,156.27,156.18,1.6951]
[1727444801793,3.1993,156.25,156.2,3.2]
[1727444801993,1.7056,156.27,156.2,3.2]
[1727444802494,3.1997,156.23,156.19,3.2004]
[1727444802804,27.12,156.25,156.18,1.6951]
[1727444802997,30.3192,156.25,156.2,3.2002]
[1727444803301,1.7056,156.27,156.18,1.6951]
[1727444804098,3.24943003,156.28,156.18,1.6951]
[1727444804305,3.1987,156.28,156.24,3.1993]
[1727444804601,76.04,156.3,156.19,27.12]
[1727444804806,79.2383,156.3,156.21,27.12]
[1727444805008,19.2,156.32,156.24,27.12]
[1727444805204,1.6562,156.34,156.24,27.12]
[1727444805606,1.6562,156.34,156.25,3.3903]
[1727444805995,3.1977,156.33,156.28,3.1984]
[1727444806300,3.1977,156.33,156.25,3.3903]
[1727444806497,4.8536,156.34,156.25,3.3903]
[1727444806703,22.37664672,156.36,156.26,1.5622]
[1727444807100,3.1977,156.33,156.28,3.1985]
[1727444807400,22.37664672,156.36,156.26,1.5622]
[1727444808306,3.1978,156.32,156.26,1.5622]
[1727444808903,3.198,156.31,156.27,3.1987]
[1727444809207,19.2,156.34,156.27,3.1987]
[1727444810200,46.32,156.32,156.19,27.12]
[1727444810506,46.32,156.32,156.2,1.5841]
[1727444811106,3.1987,156.28,156.23,3.1995]
[1727444811311,3.12689514,156.28,156.23,3.1995]
[1727444811612,3.199,156.26,156.22,3.1997]
[1727444811806,3.199,156.26,156.2,1.5841]
[1727444812199,3.1992,156.25,156.2,1.5841]
[1727444812406,49.59026317,156.27,156.17,3.3534]
[1727444812808,3.1997,156.23,156.18,3.2004]
[1727444813004,3.1997,156.23,156.17,3.3534]
[1727444813509,3.1993,156.25,156.17,3.3534]
[1727444814210,3.27026317,156.27,156.17,30.4734]
[1727444814410,28.7272,156.29,156.17,30.4734]
[1727444814612,28.7272,156.29,156.25,3.199]
[1727444814613,3.1984,156.29,156.25,3.199]
[1727444814808,46.32,156.32,156.19,27.12]
[1727444815213,27.12,156.32,156.19,27.12]
[1727444815412,48.0271,156.35,156.22,27.12]
[1727444815613,48.0271,156.35,156.23,1.5452]
[1727444816113,27.12,156.32,156.23,1.5452]
[1727444816312,3.1985,156.29,156.24,3.1992]
[1727444816510,46.32,156.32,156.24,3.1992]
[1727444816714,46.32,156.32,156.23,1.5452]
[1727444816910,3.1988,156.27,156.22,3.1996]
[1727444817212,3.1988,156.27,156.18,1.5452]
[1727444817614,3.20323929,156.28,156.18,1.5452]
[1727444817916,27.12,156.3,156.18,1.5452]
[1727444818108,27.12,156.3,156.22,3.1996]
[1727444818309,3.1989,156.27,156.18,1.5452]
[1727444819012,3.1989,156.27,156.23,3.1995]
[1727444819213,3.1989,156.26,156.23,3.1995]
[1727444819414,3.26671101,156.28,156.23,3.1995]
[1727444819716,46.32,156.3,156.23,3.1995]
[1727444819912,3.1986,156.28,156.23,3.1995]
[1727444820113,6.40385011,156.28,156.24,3.1993]
[1727444820315,19.2,156.31,156.2,27.12]
[1727444820615,19.2,156.31,156.23,3.1995]
[1727444820917,19.2,156.31,156.2,27.12]
[1727444821118,46.32,156.32,156.2,27.12]
[1727444821309,46.32,156.32,156.23,27.12]
[1727444821310,19.2,156.32,156.23,27.12]
[1727444821617,3.1981,156.31,156.23,27.12]
[1727444821918,19.2,156.32,156.26,3.1988]
[1727444822115,19.2,156.33,156.26,3.1988]
[1727444822417,3.1983,156.3,156.26,3.1988]
[1727444822815,3.198,156.31,156.27,3.1987]
[1727444823012,95.24,156.34,156.23,27.12]
[1727444823319,95.24,156.34,156.24,1.5907]
[1727444823511,3.1978,156.32,156.28,3.1984]
[1727444823711,122.36,156.34,156.25,1.5841]
[1727444824113,3.1983,156.3,156.26,3.1989]
[1727444824515,122.36,156.34,156.25,4.7832]
[1727444824708,19.2,156.31,156.2,27.12]
[1727444824913,19.2,156.31,156.21,1.6765]
[1727444825617,3.1985,156.29,156.21,1.6765]
[1727444826111,19.2,156.33,156.21,1.6765]
[1727444826309,28.8271,156.35,156.25,27.12]
[1727444826310,20.9071,156.35,156.25,27.12]
[1727444826511,20.9071,156.35,156.26,3.2447]
[1727444826715,19.2,156.35,156.26,3.2447]
[1727444826909,173.37642845,156.36,156.28,27.12]
[1727444827109,76.04,156.36,156.29,1.5657]
[1727444827315,79.29680215,156.36,156.31,3.1979]
[1727444827717,79.29680215,156.36,156.29,1.5657]
[1727444828617,79.29680215,156.36,156.3,3.198]
[1727444829610,79.29680215,156.36,156.31,3.1979]
[1727444830217,79.29680215,156.36,156.29,1.5657]
[1727444831015,79.29680215,156.36,156.3,3.198]
[1727444831417,79.29680215,156.36,156.29,4.7638]
[1727444831613,79.29680215,156.36,156.29,1.5657]
[1727444832124,46.32,156.35,156.26,1.5666]
[1727444832310,46.32,156.35,156.21,27.12]
[1727444832311,48.2634,156.35,156.21,27.12]
[1727444832621,48.2634,156.35,156.22,1.6501]
[1727444832820,48.2634,156.35,156.23,27.12]
[1727444833421,48.2634,156.35,156.22,1.6501]
[1727444833719,48.2634,156.35,156.23,27.12]
[1727444834411,3.198,156.31,156.27,3.1986]
[1727444834613,3.198,156.31,156.23,27.12]
[1727444834818,48.2634,156.35,156.23,27.12]
[1727444835417,48.2634,156.35,156.22,1.6501]
[1727444835613,3.1984,156.29,156.22,1.6501]
[1727444835917,46.32,156.32,156.22,1.6501]
[1727444836523,3.1984,156.29,156.25,3.1991]
[1727444838320,46.32,156.34,156.22,1.6501]
[1727444838724,3.198,156.31,156.22,1.6501]
[1727444838926,46.32,156.34,156.23,27.12]
[1727444839116,46.32,156.34,156.22,1.6501]
[1727444839117,79.29680215,156.36,156.25,27.12]
[1727444839828,98.49680215,156.36,156.25,27.12]
[1727444840028,46.32,156.34,156.22,1.6501]
[1727444840625,3.1983,156.3,156.25,3.199]
[1727444841027,3.1983,156.3,156.22,1.6501]
[1727444841228,27.12,156.31,156.22,1.6501]
[1727444841622,3.1987,156.28,156.25,3.1991]
[1727444841825,3.24274162,156.28,156.2,3.173]
[1727444842024,27.12,156.26,156.15,1.6293]
[1727444842232,27.12,156.23,156.15,1.6293]
[1727444842822,3.2,156.21,156.17,3.2007]
[1727444843924,3.2002,156.2,156.16,3.201]
[1727444844129,27.12,156.23,156.12,1.7137]
[1727444844525,27.12,156.23,156.17,3.2006]
[1727444844924,3.1998,156.22,156.17,3.2006]
[1727444845125,27.12,156.23,156.17,3.2006]
[1727444845628,3.1998,156.22,156.17,3.2006]
[1727444845827,3.1998,156.22,156.12,1.7137]
[1727444846129,20.1696,156.26,156.12,1.7137]
[1727444846130,3.199,156.26,156.15,27.12]
[1727444846629,3.199,156.26,156.21,3.1998]
[1727444846833,3.1992,156.25,156.15,27.12]
[1727444847037,46.32,156.29,156.19,3.2002]
[1727444847234,19.2,156.29,156.19,3.2002]
[1727444847434,3.1995,156.24,156.19,3.2002]
[1727444848142,27.12,156.24,156.12,28.8337]
[1727444848336,27.12,156.22,156.12,1.7137]
[1727444848638,3.2005,156.19,156.14,3.2013]
[1727444849145,3.2003,156.2,156.15,3.2012]
[1727444849537,3.2003,156.2,156.12,1.7137]
[1727444849833,3.2003,156.2,156.16,3.201]
[1727444851543,3.2003,156.2,156.15,3.2011]
[1727444851745,27.12,156.22,156.12,1.7137]
[1727444852244,3.2005,156.19,156.14,3.2013]
[1727444852440,27.12,156.22,156.12,1.7137]
[1727444852636,27.12,156.22,156.15,3.2011]
[1727444853239,3.2005,156.19,156.15,3.2011]
[1727444853442,27.12,156.19,156.12,1.7137]
[1727444853740,3.2008,156.17,156.11,1.6045]
[1727444854040,27.12,156.19,156.11,1.6045]
[1727444854241,3.2003,156.2,156.11,1.6045]
[1727444854542,27.12,156.22,156.15,3.201]
[1727444854945,27.12,156.19,156.1,1.602]
[1727444855347,3.202,156.12,156.08,3.2025]
[1727444855844,27.12,156.12,156.03,1.7054]
[1727444856143,1.6103,156.11,156.03,3.2037]
[1727444856352,27.12,156.09,155.99,30.266]
[1727444856538,3.203,156.07,156.02,3.2039]
[1727444856739,3.203,156.07,155.99,3.146]
[1727444856740,27.12,156.09,155.99,3.146]
[1727444856937,27.12,156.09,156.02,3.2039]
[1727444857138,27.12,156.09,155.99,3.146]
[1727444857448,4.8123,156.11,156.06,3.203]
[1727444857940,3.202,156.11,156.06,3.203]
[1727444858746,3.2023,156.1,156.02,1.6691]
[1727444859351,3.20636737,156.13,156.02,1.6691]
[1727444859847,3.2019,156.12,156.02,1.6691]
[1727444860444,79.26638536,156.14,156.06,3.2029]
[1727444860640,27.12,156.13,156.02,1.6691]
[1727444860844,27.12,156.11,156.02,1.6691]
[1727444861048,3.2023,156.1,156.05,3.2031]
[1727444861244,27.12,156.11,156.02,1.6691]
[1727444861450,3.2027,156.08,156.03,3.2035]
[1727444861850,27.12,156.11,156.02,1.6691]
[1727444862653,3.2028,156.08,156.03,3.2037]
[1727444862843,27.12,156.11,156.02,1.6691]
[1727444863346,27.12,156.08,155.99,3.146]
[1727444864853,3.2031,156.06,155.99,3.146]
[1727444865254,27.12,156.08,155.99,3.146]
[1727444866148,27.12,156.04,155.93,1.5952]
[1727444866354,3.1330771,156.03,155.93,1.5952]
[1727444866550,6.3367771,156.03,155.99,3.2044]
[1727444867748,3.2035,156.04,155.94,27.12]
[1727444868142,3.2035,156.04,156.0,3.2041]
[1727444868648,1.9473,156.1,156.03,3.2035]
[1727444868955,19.2,156.09,156.03,3.2035]
[1727444869344,19.2,156.09,156.02,3.2038]
[1727444869556,19.2,156.09,155.96,27.12]
[1727444870352,1.9473,156.1,155.99,27.12]
[1727444870551,3.2026,156.09,156.04,3.2033]
[1727444870752,27.12,156.08,156.0,3.1564]
[1727444870951,46.32,156.08,156.0,3.2042]
[1727444871150,46.32,156.08,155.96,27.12]
[1727444871653,3.2032,156.06,155.96,27.12]
[1727444871845,3.12666672,156.05,155.96,27.12]
[1727444872251,6.32996672,156.05,156.01,3.204]
[1727444872452,6.32996672,156.05,155.96,27.12]
[1727444872453,3.2033,156.05,155.96,27.12]
[1727444872758,3.2031,156.06,156.02,3.2037]
[1727444872954,3.16160333,156.05,155.96,27.12]
[1727444873460,1.9473,156.1,155.99,27.12]
[1727444873756,19.2,156.11,156.02,27.12]
[1727444873950,3.2023,156.1,156.02,27.12]
[1727444874355,3.2026,156.09,156.05,3.2031]
[1727444874756,27.12,156.11,156.05,3.2031]
[1727444875056,27.12,156.11,156.04,3.2034]
[1727444875467,3.2024,156.09,156.0,4.9382]
[1727444875965,3.2024,156.09,156.05,3.203]
[1727444876462,3.2023,156.1,156.05,3.203]
[1727444878561,3.2023,156.1,156.0,4.9382]
[1727444878562,27.12,156.11,156.0,4.9382]
[1727444878954,46.32,156.11,156.0,4.9382]
[1727444879763,3.2026,156.09,156.05,3.2031]
[1727444880162,46.32,156.11,156.0,4.9382]
[1727444880360,46.32,156.09,156.03,3.2036]
[1727444880860,3.2031,156.06,156.02,3.2037]
[1727444881061,46.32,156.09,156.0,3.2408]
[1727444881967,46.32,156.09,156.0,1.6826]
[1727444882268,3.2032,156.06,156.02,3.2038]
[1727444882455,3.1791447,156.05,156.02,3.2038]
[1727444882861,46.32,156.06,155.94,28.6867]
[1727444883165,3.15463595,156.06,155.97,27.12]
[1727444883368,76.14,156.1,155.99,27.12]
[1727444883563,76.14,156.1,156.0,1.6921]
[1727444883862,3.2026,156.09,156.05,3.2031]
[1727444884256,76.14,156.1,156.01,1.6238]
[1727444884461,76.14,156.1,156.02,1.5861]
[1727444885264,76.14,156.1,156.06,3.2029]
[1727444885571,76.14,156.1,156.02,1.5861]
[1727444886063,76.14,156.1,156.05,3.2032]
[1727444886272,76.14,156.1,156.02,1.5861]
[1727444886768,76.14,156.1,156.04,3.2033]
[1727444886960,76.14,156.1,156.02,1.5861]
[1727444887158,3.5137,156.13,156.02,28.7061]
[1727444887468,116.69913363,156.14,156.04,27.12]
[1727444888771,116.69913363,156.14,156.02,1.5861]
[1727444888772,3.2009,156.17,156.12,3.2017]
[1727444888969,76.14,156.18,156.12,3.2017]
[1727444889166,76.14,156.18,156.07,27.12]
[1727444889369,3.2008,156.17,156.13,3.2015]
[1727444889567,3.1983353,156.16,156.13,3.2015]
[1727444889866,3.2015,156.14,156.07,27.12]
[1727444890070,3.23228859,156.15,156.04,27.12]
[1727444890273,27.12,156.17,156.04,27.12]
[1727444890474,3.2016,156.13,156.09,3.2024]
[1727444890866,27.12,156.14,156.02,28.7061]
[1727444891066,27.12,156.17,156.04,27.12]
[1727444891274,30.27797574,156.17,156.04,27.12]
[1727444891770,30.27797574,156.17,156.07,27.12]
[1727444891771,3.15797574,156.17,156.07,27.12]
[1727444891971,76.14,156.18,156.08,1.5479]
[1727444892274,76.14,156.18,156.12,3.2017]
[1727444892275,3.2012,156.16,156.12,3.2017]
[1727444892473,3.15797574,156.16,156.12,3.2017]
[1727444892776,3.2009,156.17,156.12,3.2017]
[1727444892972,3.22006744,156.25,156.13,16.92]
[1727444893176,3.1996,156.23,156.15,16.92]
[1727444893371,18.5951,156.27,156.2,3.2]
[1727444894175,16.92,156.25,156.19,3.2003]
[1727444894474,27.05,156.25,156.19,3.2003]
[1727444895875,27.05,156.25,156.13,27.05]
[1727444896077,27.05,156.23,156.11,27.05]
[1727444896881,30.2498,156.23,156.11,27.05]
[1727444897072,27.05,156.26,156.13,27.05]
[1727444897375,3.1996,156.23,156.15,27.05]
[1727444897574,3.1996,156.23,156.19,3.2004]
[1727444897977,3.1996,156.23,156.18,3.2004]
[1727444898177,3.1995,156.24,156.15,27.05]
[1727444898381,3.1995,156.24,156.16,1.5591]
[1727444898585,27.05,156.26,156.2,3.2]
[1727444898882,3.1993,156.25,156.2,3.2]
[1727444899674,3.1994,156.24,156.2,3.2]
[1727444901473,1.6751,156.27,156.16,1.5591]
[1727444901673,1.9461,156.29,156.18,27.05]
[1727444902073,27.05,156.28,156.21,3.1999]
[1727444902273,27.05,156.26,156.17,3.2641]
[1727444902780,27.05,156.26,156.16,1.5591]
[1727444903080,27.05,156.23,156.16,1.5591]
[1727444903283,3.24824063,156.22,156.16,1.5591]
[1727444904889,27.05,156.23,156.13,1.6341]
[1727444905186,27.05,156.21,156.13,1.6341]
[1727444905487,3.2008,156.17,156.13,3.2015]
[1727444905781,27.05,156.16,156.08,1.6898]
[1727444906176,27.05,156.16,156.07,1.6887]
[1727444906177,27.05,156.14,156.07,1.6887]
[1727444906781,3.2017,156.13,156.08,3.2025]
[1727444906980,27.05,156.12,156.03,1.6106]
[1727444907198,3.22462176,156.11,156.03,1.6106]
[1727444907491,3.202,156.11,156.03,1.6106]
[1727444907991,46.25,156.14,156.03,1.6106]
[1727444908179,27.05,156.14,156.03,1.6106]
[1727444908584,3.2018,156.13,156.08,3.2025]
[1727444909492,27.05,156.11,156.03,1.6106]
[1727444909786,27.05,156.09,156.0,3.2597]
[1727444909988,3.2034,156.05,156.0,1.571]
[1727444910181,27.05,156.06,156.0,1.571]
[1727444910592,27.05,156.06,155.95,3.1049]
[1727444910887,27.05,156.06,155.95,4.8138]
[1727444911187,3.2035,156.04,155.99,3.2043]
[1727444912595,6.42584425,156.05,156.0,3.2042]
[1727444913192,30.2531,156.06,156.01,3.204]
[1727444913489,27.05,156.06,155.95,4.8138]
[1727444913789,27.05,156.09,155.97,27.05]
[1727444914682,77.7114,156.1,155.97,27.05]
[1727444914887,76.1,156.1,155.99,27.05]
[1727444915290,76.1,156.1,156.06,3.2029]
[1727444915791,79.3022,156.1,156.06,3.2029]
[1727444915990,79.3022,156.1,156.05,3.2032]
[1727444916395,3.2025,156.09,155.99,27.05]
[1727444916598,76.1,156.1,155.95,4.8138]
[1727444916797,3.2032,156.06,155.95,4.8138]
[1727444917097,27.05,156.07,156.01,3.2039]
[1727444917595,3.2034,156.05,156.01,3.2039]
[1727444918491,3.2031,156.06,156.01,3.2039]
[1727444918799,3.14601667,156.05,156.0,3.2042]
[1727444918998,46.25,156.07,156.0,3.2042]
[1727444919493,3.2036,156.04,155.99,3.2044]
[1727444920800,27.05,156.04,155.95,4.8138]
[1727444921801,27.05,156.02,155.95,1.7089]
[1727444921995,3.2041,156.01,155.96,3.205]
[1727444922295,27.05,156.02,155.95,1.7089]
[1727444923699,3.2044,156.0,155.95,1.7089]
[1727444924302,27.05,156.02,155.95,1.7089]
[1727444924502,27.05,156.02,155.96,3.205]
[1727444924503,3.2042,156.01,155.96,3.205]
[1727444924804,3.2042,156.01,155.95,1.7089]
[1727444925503,3.2043,156.0,155.96,3.205]
[1727444925800,27.05,156.02,155.9,1.6678]
[1727444925997,27.05,155.99,155.9,3.2728]
[1727444926199,21.825,156.04,155.9,3.2728]
[1727444926200,27.05,156.02,155.9,3.2728]
[1727444926794,27.05,156.02,155.96,3.205]
[1727444928400,27.05,156.02,155.9,3.2728]
[1727444929400,76.14,156.06,155.95,27.05]
[1727444929715,3.23998569,156.05,155.96,1.6953]
[1727444929904,76.14,156.06,155.96,1.6953]
[1727444929905,103.19,156.06,155.96,1.6953]
[1727444930102,103.19,156.06,155.99,3.2043]
[1727444930103,3.2037,156.03,155.99,3.2043]
[1727444930297,103.19,156.06,155.96,1.6953]
[1727444930298,3.20727476,156.04,155.96,1.6953]
[1727444930503,103.19,156.06,155.96,1.6953]
[1727444930702,19.2,156.05,155.99,3.2043]
[1727444931010,22.48167609,156.05,155.96,1.6953]
[1727444931202,3.204,156.02,155.98,3.2046]
[1727444931499,46.25,156.04,155.9,3.2728]
[1727444931703,47.8006,156.04,155.91,1.6953]
[1727444931900,47.8006,156.04,155.97,3.2048]
[1727444932103,47.8006,156.04,155.91,1.6953]
[1727444932406,3.2039,156.02,155.98,3.2046]
[1727444932896,27.05,155.99,155.91,1.6953]
[1727444933097,27.05,155.96,155.9,6.479]
[1727444933294,27.05,155.96,155.9,3.2728]
[1727444933502,27.05,155.96,155.93,3.2056]
[1727444934302,27.05,155.96,155.92,3.2059]
[1727444934703,27.05,155.96,155.9,1.605]
[1727444936203,27.05,155.96,155.92,3.2057]
[1727444937701,27.05,155.96,155.9,1.605]
[1727444937702,27.05,155.94,155.85,1.5661]
[1727444937906,27.05,155.94,155.85,3.2129]
[1727444938606,27.05,155.94,155.9,3.2063]
[1727444938801,27.05,155.94,155.85,3.2129]
[1727444938999,3.2057,155.93,155.88,3.2066]
[1727444939202,27.05,155.94,155.88,3.2066]
[1727444939603,3.2059,155.92,155.87,3.2069]
[1727444940009,3.2059,155.92,155.85,3.2129]
[1727444940309,27.05,155.92,155.85,3.2129]
[1727444940711,3.2059,155.93,155.88,3.2066]
[1727444941113,27.05,155.94,155.85,3.2129]
[1727444941414,3.2055,155.95,155.9,3.2062]
[1727444941913,3.2055,155.94,155.9,3.2062]
[1727444942112,30.23605088,155.97,155.85,3.2129]
[1727444942413,27.05,155.97,155.87,27.05]
[1727444942611,30.19562925,155.97,155.94,3.2055]
[1727444943009,3.14562925,155.97,155.94,3.2055]
[1727444943319,30.2544,156.0,155.95,3.2052]
[1727444943512,27.05,156.0,155.95,3.2052]
[1727444943813,30.2544,156.0,155.95,3.2052]
[1727444944013,27.05,156.0,155.95,3.2052]
[1727444944205,122.45,156.04,155.89,27.05]
[1727444944719,122.45,156.04,155.95,3.2052]
[1727444944907,21.8249,156.03,155.87,30.33005236]
[1727444945108,27.05,155.98,155.85,36.6776]
[1727444945409,6.4282078,155.97,155.85,36.6776]
[1727444945614,27.05,155.96,155.85,30.2629]
[1727444946115,30.24348611,155.96,155.85,30.2629]
[1727444946419,27.05,155.98,155.85,30.2629]
[1727444946717,3.205,155.97,155.94,3.2055]
[1727444947012,21.8249,156.03,155.87,27.05]
[1727444947013,27.05,156.0,155.87,27.05]
[1727444947204,2.6249,156.03,155.9,27.05]
[1727444947409,3.2045,155.99,155.91,1.5745]
[1727444947609,3.2045,155.99,155.92,1.6782]
[1727444947810,2.6249,156.03,155.96,3.2051]
[1727444948006,1.6512,156.03,155.92,1.6782]
[1727444948213,1.6512,156.03,155.93,1.6904]
[1727444948811,103.25,156.04,155.93,1.6904]
[1727444949112,28.7248,156.09,155.95,27.05]
[1727444949319,198.5292663,156.12,155.98,27.05]
[1727444949507,3.2029,156.07,156.03,3.2035]
[1727444950006,198.5292663,156.12,156.05,3.2032]
[1727444950414,198.5292663,156.12,156.0,28.6062]
[1727444950815,3.2024,156.09,156.05,3.2031]
[1727444951116,170.5048663,156.12,156.0,28.6062]
[1727444951912,3.2023,156.1,156.05,3.2031]
[1727444952120,197.5548663,156.12,156.0,1.5562]
[1727444952512,198.5262663,156.12,156.0,1.5562]
[1727444952713,3.2028,156.07,156.03,3.2036]
[1727444953014,27.05,156.1,156.0,1.5562]
[1727444953621,3.2027,156.08,156.0,1.5562]
[1727444953819,27.05,156.1,156.0,1.5562]
[1727444954020,27.05,156.07,155.99,3.1458]
[1727444954218,27.05,156.07,155.99,3.2045]
[1727444954418,27.05,156.07,155.93,4.8644]
[1727444954419,27.05,156.04,155.93,4.8644]
[1727444954812,3.204,156.02,155.93,4.8644]
[1727444955012,27.05,156.04,155.93,4.8644]
[1727444955618,27.05,156.02,155.96,3.205]
[1727444955824,27.05,156.02,155.93,4.8644]
[1727444956125,32.23587934,156.05,155.93,4.8644]
[1727444956321,27.05,156.02,155.93,4.8644]
[1727444957425,3.2041,156.01,155.98,3.2046]
[1727444957820,27.05,156.02,155.98,3.2046]
[1727444958724,27.05,156.02,155.93,4.8644]
[1727444959226,3.2042,156.01,155.93,4.8644]
[1727444959414,27.05,156.02,155.93,4.8644]
[1727444959415,27.05,156.02,155.97,3.2048]
[1727444959930,3.2041,156.01,155.97,3.2048]
[1727444960225,27.05,156.02,155.97,3.2048]
[1727444960426,3.2041,156.01,155.97,3.2048]
[1727444961922,27.05,156.0,155.87,27.05]
[1727444962124,27.05,156.02,155.9,27.05]
[1727444962526,30.2539,156.02,155.98,3.2045]
[1727444963032,32.23587934,156.05,155.93,27.05]
[1727444963325,32.23587934,156.05,155.94,1.7123]
[1727444963530,5.18587934,156.05,155.94,1.7123]
[1727444963719,27.05,155.98,155.89,3.3747]
[1727444964025,3.21616122,155.97,155.89,1.668]
[1727444964523,3.2054,155.95,155.91,3.206]
[1727444964727,3.21616122,155.97,155.91,3.206]
[1727444965025,27.05,155.98,155.89,1.668]
[1727444965235,27.05,155.95,155.9,3.2063]
[1727444965527,27.05,155.95,155.85,3.3133]
[1727444965830,3.2057,155.93,155.85,3.3133]
[1727444966424,3.2057,155.93,155.88,3.2066]